[Event "*** Titled Tuesday Blitz"]
[Site "Chess.com"]
[Date "2020.05.05"]
[Round "10"]
[White "Morshynska"]
[Black "powermove"]
[Result "1-0"]
[WhiteElo "2143"]
[BlackElo "1677"]
[TimeControl "180+1"]
[EndTime "11:59:36 PDT"]
[Termination "Morshynska won on time"]

1. e4 {[%clk 0:03:00.9]} 1... e5 {[%clk 0:02:59.1]} 2. Nf3 {[%clk 0:02:58.6]}
2... Nc6 {[%clk 0:02:58.4]} 3. Bc4 {[%clk 0:02:58]} 3... Nf6 {[%clk 0:02:57.7]}
4. d3 {[%clk 0:02:56.8]} 4... Bc5 {[%clk 0:02:57.3]} 5. c3 {[%clk 0:02:56.3]}
5... d6 {[%clk 0:02:56.7]} 6. h3 {[%clk 0:02:52.8]} 6... a6 {[%clk 0:02:55.4]}
7. O-O {[%clk 0:02:47.7]} 7... Ba7 {[%clk 0:02:44]} 8. Be3 {[%clk 0:02:43.2]}
8... O-O {[%clk 0:02:39.9]} 9. Bb3 {[%clk 0:02:38.7]} 9... Ne7 {[%clk
0:02:32.9]} 10. Nbd2 {[%clk 0:02:36.1]} 10... Ng6 {[%clk 0:02:31.6]} 11. d4
{[%clk 0:02:31]} 11... Qe7 {[%clk 0:02:28.1]} 12. Re1 {[%clk 0:02:29.1]} 12...
h6 {[%clk 0:01:45.9]} 13. Bc2 {[%clk 0:02:12.8]} 13... Bd7 {[%clk 0:01:42]} 14.
Nf1 {[%clk 0:02:09.7]} 14... Rad8 {[%clk 0:01:38.8]} 15. Ng3 {[%clk 0:02:08.2]}
15... Nh7 {[%clk 0:01:31.6]} 16. Nf5 {[%clk 0:01:53.7]} 16... Qf6 {[%clk
0:01:21.2]} 17. dxe5 {[%clk 0:01:49.9]} 17... dxe5 {[%clk 0:01:20.6]} 18. Bxa7
{[%clk 0:01:49.3]} 18... Bxf5 {[%clk 0:01:19.2]} 19. Qc1 {[%clk 0:01:36.2]}
19... Bxh3 {[%clk 0:01:16.1]} 20. Be3 {[%clk 0:01:23.8]} 20... Bg4 {[%clk
0:01:11.2]} 21. Nh2 {[%clk 0:01:21.4]} 21... Be6 {[%clk 0:01:04.3]} 22. f3
{[%clk 0:01:17.7]} 22... Ng5 {[%clk 0:00:55]} 23. Bf2 {[%clk 0:01:08.2]} 23...
Nf4 {[%clk 0:00:52.1]} 24. Kh1 {[%clk 0:00:59.5]} 24... Qg6 {[%clk 0:00:41.7]}
25. Rg1 {[%clk 0:00:56.5]} 25... Ne2 {[%clk 0:00:40.2]} 26. Qe3 {[%clk
0:00:55.8]} 26... Nxg1 {[%clk 0:00:37.9]} 27. Rxg1 {[%clk 0:00:56.7]} 27... b6
{[%clk 0:00:32.8]} 28. a4 {[%clk 0:00:55.4]} 28... Rd7 {[%clk 0:00:31.2]} 29.
Be1 {[%clk 0:00:54.6]} 29... Rfd8 {[%clk 0:00:26.1]} 30. g3 {[%clk 0:00:53.9]}
30... Nh3 {[%clk 0:00:17.5]} 31. Rg2 {[%clk 0:00:50.8]} 31... a5 {[%clk
0:00:16.6]} 32. f4 {[%clk 0:00:46.3]} 32... Qh5 {[%clk 0:00:05.1]} 33. f5 {[%clk
0:00:30.5]} 33... Bc4 {[%clk 0:00:04.1]} 34. g4 {[%clk 0:00:26.6]} 34... Qg5
{[%clk 0:00:03]} 35. Qxh3 {[%clk 0:00:18.5]} 35... Bd3 {[%clk 0:00:02.8]} 36.
Bd1 {[%clk 0:00:17.5]} 36... Bc4 {[%clk 0:00:01.8]} 37. Bf3 {[%clk 0:00:16.1]}
37... Bf1 {[%clk 0:00:01.7]} 38. Qg3 {[%clk 0:00:14.8]} 38... Bxg2+ {[%clk
0:00:01.8]} 39. Kxg2 {[%clk 0:00:15.3]} 39... Rd3 {[%clk 0:00:01.7]} 40. Nf1
{[%clk 0:00:14.4]} 1-0

[Event "*** Titled Tuesday Blitz"]
[Site "Chess.com"]
[Date "2020.05.05"]
[Round "10"]
[White "tteshan"]
[Black "GMJustin"]
[Result "0-1"]
[WhiteElo "2205"]
[BlackElo "2354"]
[TimeControl "180+1"]
[EndTime "11:59:37 PDT"]
[Termination "GMJustin won by checkmate"]

1. d4 {[%clk 0:03:00.9]} 1... d5 {[%clk 0:02:50.5]} 2. c4 {[%clk 0:03:00.4]}
2... dxc4 {[%clk 0:02:49.3]} 3. e3 {[%clk 0:02:59.9]} 3... Nc6 {[%clk
0:02:47.3]} 4. Bxc4 {[%clk 0:02:59]} 4... e5 {[%clk 0:02:46.5]} 5. Nf3 {[%clk
0:02:38.9]} 5... e4 {[%clk 0:02:41.1]} 6. Nfd2 {[%clk 0:02:36.2]} 6... Qg5
{[%clk 0:02:40.3]} 7. Nxe4 {[%clk 0:02:21.5]} 7... Qxg2 {[%clk 0:02:38.4]} 8.
Ng3 {[%clk 0:02:21.2]} 8... Bb4+ {[%clk 0:02:29.5]} 9. Nc3 {[%clk 0:02:16.7]}
9... Nf6 {[%clk 0:02:15.2]} 10. Qb3 {[%clk 0:02:11.7]} 10... O-O {[%clk
0:02:11.5]} 11. Bd2 {[%clk 0:02:09.2]} 11... Bxc3 {[%clk 0:01:30.1]} 12. Bxc3
{[%clk 0:02:05.8]} 12... Ne4 {[%clk 0:01:24.7]} 13. O-O-O {[%clk 0:01:46.9]}
13... Nxc3 {[%clk 0:01:18.3]} 14. Qxc3 {[%clk 0:01:41.6]} 14... Ne7 {[%clk
0:00:57]} 15. Nh5 {[%clk 0:01:19.8]} 15... Qf3 {[%clk 0:00:35.9]} 16. Nf4 {[%clk
0:01:15.3]} 16... Ng6 {[%clk 0:00:29.9]} 17. Bd5 {[%clk 0:01:04.6]} 17... Qxf2
{[%clk 0:00:27.8]} 18. Rdf1 {[%clk 0:01:01]} 18... Qh4 {[%clk 0:00:25.8]} 19.
Nxg6 {[%clk 0:00:58.8]} 19... hxg6 {[%clk 0:00:25.1]} 20. Rxf7 {[%clk
0:00:44.9]} 20... Rxf7 {[%clk 0:00:22.5]} 21. Qxc7 {[%clk 0:00:40.9]} 21... Qf2
{[%clk 0:00:12.9]} 22. Qd8+ {[%clk 0:00:23.1]} 22... Kh7 {[%clk 0:00:11.7]} 23.
Bxf7 {[%clk 0:00:19.8]} 23... Qxf7 {[%clk 0:00:11.6]} 24. Qh4+ {[%clk
0:00:19.7]} 24... Kg8 {[%clk 0:00:11]} 25. Qd8+ {[%clk 0:00:19.3]} 25... Qf8
{[%clk 0:00:10.9]} 26. Qd5+ {[%clk 0:00:18.1]} 26... Kh8 {[%clk 0:00:11.1]} 27.
Qg2 {[%clk 0:00:16]} 27... Bf5 {[%clk 0:00:10.4]} 28. h4 {[%clk 0:00:15.8]}
28... Rc8+ {[%clk 0:00:10.1]} 29. Kd1 {[%clk 0:00:15.6]} 29... Rc2 {[%clk
0:00:08.1]} 30. Qg5 {[%clk 0:00:10.1]} 30... Rxb2 {[%clk 0:00:06.8]} 31. h5
{[%clk 0:00:07.5]} 31... Bc2+ {[%clk 0:00:06.2]} 32. Ke1 {[%clk 0:00:06.6]}
32... Qb4+ {[%clk 0:00:06]} 33. Kf2 {[%clk 0:00:06.4]} 33... Be4+ {[%clk
0:00:06]} 34. Kg3 {[%clk 0:00:05.6]} 34... Rg2+ {[%clk 0:00:06]} 35. Kf4 {[%clk
0:00:05.1]} 35... Rxg5 {[%clk 0:00:06]} 36. Kxg5 {[%clk 0:00:06]} 36... Qe7+
{[%clk 0:00:05.9]} 37. Kf4 {[%clk 0:00:06.1]} 37... g5+ {[%clk 0:00:06.4]} 38.
Kg4 {[%clk 0:00:05.8]} 38... Qd6 {[%clk 0:00:06.5]} 39. Kxg5 {[%clk 0:00:05.9]}
39... Bxh1 {[%clk 0:00:06.5]} 40. h6 {[%clk 0:00:05.7]} 40... Be4 {[%clk
0:00:06]} 41. Kh5 {[%clk 0:00:05.7]} 41... Qg6+ {[%clk 0:00:05]} 42. Kh4 {[%clk
0:00:05.2]} 42... gxh6 {[%clk 0:00:05.1]} 43. Kh3 {[%clk 0:00:05.5]} 43... Qg5
{[%clk 0:00:04.6]} 44. d5 {[%clk 0:00:05.9]} 44... h5 {[%clk 0:00:04.1]} 45. d6
{[%clk 0:00:06.1]} 45... Qg4+ {[%clk 0:00:03.6]} 46. Kh2 {[%clk 0:00:06.5]}
46... Qg2# {[%clk 0:00:03.6]} 0-1

[Event "*** Titled Tuesday Blitz"]
[Site "Chess.com"]
[Date "2020.05.05"]
[Round "10"]
[White "IMTominho"]
[Black "Sam_ChessMood"]
[Result "1-0"]
[WhiteElo "2835"]
[BlackElo "2884"]
[TimeControl "180+1"]
[EndTime "11:59:38 PDT"]
[Termination "IMTominho won by resignation"]

1. d4 {[%clk 0:03:00.9]} 1... Nf6 {[%clk 0:02:59.4]} 2. c4 {[%clk 0:03:00.9]}
2... e6 {[%clk 0:02:59.7]} 3. Nf3 {[%clk 0:03:01.1]} 3... d5 {[%clk 0:02:59.8]}
4. Nc3 {[%clk 0:02:59.5]} 4... Bb4 {[%clk 0:02:59.3]} 5. cxd5 {[%clk 0:02:57.3]}
5... exd5 {[%clk 0:02:58.7]} 6. Bg5 {[%clk 0:02:57.7]} 6... h6 {[%clk
0:02:56.2]} 7. Bxf6 {[%clk 0:02:56.6]} 7... Qxf6 {[%clk 0:02:56]} 8. Qa4+ {[%clk
0:02:54.8]} 8... Nc6 {[%clk 0:02:55.7]} 9. e3 {[%clk 0:02:52.1]} 9... O-O {[%clk
0:02:55.4]} 10. Rc1 {[%clk 0:02:49.6]} 10... Rd8 {[%clk 0:02:53.6]} 11. a3
{[%clk 0:02:43.1]} 11... Bf8 {[%clk 0:02:51.9]} 12. Bd3 {[%clk 0:02:35.1]} 12...
Ne7 {[%clk 0:02:37.7]} 13. O-O {[%clk 0:02:30.7]} 13... c6 {[%clk 0:02:35.3]}
14. b4 {[%clk 0:02:26.9]} 14... a6 {[%clk 0:01:58.2]} 15. Qb3 {[%clk 0:02:20.3]}
15... Bf5 {[%clk 0:01:50.8]} 16. Rfd1 {[%clk 0:02:15.6]} 16... Bg4 {[%clk
0:01:44.9]} 17. Be2 {[%clk 0:02:14.7]} 17... Ng6 {[%clk 0:01:45.1]} 18. a4
{[%clk 0:02:09.8]} 18... Bd6 {[%clk 0:01:40.6]} 19. Nd2 {[%clk 0:02:02.7]} 19...
Be6 {[%clk 0:01:08.8]} 20. g3 {[%clk 0:01:57.9]} 20... Nf8 {[%clk 0:00:58.4]}
21. b5 {[%clk 0:01:53.2]} 21... a5 {[%clk 0:00:54.5]} 22. bxc6 {[%clk
0:01:47.1]} 22... bxc6 {[%clk 0:00:55.4]} 23. Qc2 {[%clk 0:01:45.7]} 23... Nh7
{[%clk 0:00:40.4]} 24. Nf3 {[%clk 0:01:40.7]} 24... Bg4 {[%clk 0:00:35.7]} 25.
Ne1 {[%clk 0:01:32.9]} 25... Bd7 {[%clk 0:00:35.7]} 26. Nf3 {[%clk 0:01:28.6]}
26... Bg4 {[%clk 0:00:35.2]} 27. Ne1 {[%clk 0:01:22.5]} 27... Bd7 {[%clk
0:00:35.1]} 28. Nd3 {[%clk 0:01:20.5]} 28... Ng5 {[%clk 0:00:33.7]} 29. f4
{[%clk 0:01:13.2]} 29... Nh3+ {[%clk 0:00:22.5]} 30. Kg2 {[%clk 0:01:13.4]}
30... Bf5 {[%clk 0:00:22.7]} 31. Qd2 {[%clk 0:01:10.6]} 31... Bb4 {[%clk
0:00:16.3]} 32. Bf3 {[%clk 0:01:06.6]} 32... g5 {[%clk 0:00:10.6]} 33. Ne5
{[%clk 0:01:04.1]} 33... h5 {[%clk 0:00:05.5]} 34. Bxh5 {[%clk 0:00:57.9]} 34...
Kg7 {[%clk 0:00:05.9]} 35. Nxf7 {[%clk 0:00:47.8]} 35... Rh8 {[%clk 0:00:05.7]}
36. Nxh8 {[%clk 0:00:45.7]} 36... Rxh8 {[%clk 0:00:06.6]} 37. g4 {[%clk
0:00:43.3]} 37... Be4+ {[%clk 0:00:05.5]} 38. Nxe4 {[%clk 0:00:40.9]} 38... dxe4
{[%clk 0:00:03.7]} 39. Qc2 {[%clk 0:00:34.4]} 39... gxf4 {[%clk 0:00:04]} 40.
Kxh3 {[%clk 0:00:31.4]} 40... Rxh5+ {[%clk 0:00:03]} 41. gxh5 {[%clk 0:00:24.5]}
41... Qf5+ {[%clk 0:00:03.1]} 42. Kg2 {[%clk 0:00:25]} 42... f3+ {[%clk
0:00:03.7]} 43. Kh1 {[%clk 0:00:24]} 43... f2 {[%clk 0:00:04.3]} 44. Rg1+ {[%clk
0:00:23.9]} 44... Kh7 {[%clk 0:00:03.9]} 45. Rcf1 {[%clk 0:00:21.5]} 45... Be1
{[%clk 0:00:03.8]} 46. Rg2 {[%clk 0:00:20.6]} 46... Qf3 {[%clk 0:00:03.7]} 47.
Qxc6 {[%clk 0:00:20.4]} 47... Qe2 {[%clk 0:00:04.2]} 48. Qg6+ {[%clk 0:00:19.3]}
1-0

[Event "*** Titled Tuesday Blitz"]
[Site "Chess.com"]
[Date "2020.05.05"]
[Round "10"]
[White "Indianlad"]
[Black "1977Ivan"]
[Result "1-0"]
[WhiteElo "2897"]
[BlackElo "2641"]
[TimeControl "180+1"]
[EndTime "11:59:38 PDT"]
[Termination "Indianlad won on time"]

1. e4 {[%clk 0:03:00.9]} 1... c5 {[%clk 0:02:59]} 2. Nf3 {[%clk 0:03:00.5]} 2...
e6 {[%clk 0:02:59.3]} 3. d4 {[%clk 0:03:00.9]} 3... cxd4 {[%clk 0:03:00.2]} 4.
Nxd4 {[%clk 0:03:00.2]} 4... Nc6 {[%clk 0:03:01.1]} 5. Nc3 {[%clk 0:02:58.5]}
5... Qc7 {[%clk 0:03:00.9]} 6. g3 {[%clk 0:02:58.2]} 6... a6 {[%clk 0:02:59.4]}
7. Bg2 {[%clk 0:02:58.6]} 7... Nf6 {[%clk 0:02:59.7]} 8. O-O {[%clk 0:02:59.1]}
8... Nxd4 {[%clk 0:02:59.7]} 9. Qxd4 {[%clk 0:02:58.9]} 9... Bc5 {[%clk
0:03:00.2]} 10. Bf4 {[%clk 0:02:59.6]} 10... d6 {[%clk 0:03:00.3]} 11. Qd2
{[%clk 0:03:00.2]} 11... h6 {[%clk 0:03:00.1]} 12. Rad1 {[%clk 0:02:58.6]} 12...
e5 {[%clk 0:03:00.4]} 13. Be3 {[%clk 0:02:57.5]} 13... Bg4 {[%clk 0:03:00.9]}
14. Bxc5 {[%clk 0:02:52]} 14... dxc5 {[%clk 0:03:01.8]} 15. f3 {[%clk
0:02:51.9]} 15... Be6 {[%clk 0:03:01.1]} 16. f4 {[%clk 0:02:52.2]} 16... O-O
{[%clk 0:02:51.8]} 17. Qd6 {[%clk 0:02:51.8]} 17... Qa5 {[%clk 0:02:48.2]} 18.
f5 {[%clk 0:02:46.5]} 18... Bc4 {[%clk 0:02:44.5]} 19. Rfe1 {[%clk 0:02:45]}
19... Qb4 {[%clk 0:02:29.6]} 20. Qxe5 {[%clk 0:02:28.6]} 20... Qxb2 {[%clk
0:02:18.9]} 21. Rb1 {[%clk 0:02:28]} 21... Qxc2 {[%clk 0:02:10.6]} 22. Rbc1
{[%clk 0:02:25.1]} 22... Qd2 {[%clk 0:01:56.4]} 23. Qxc5 {[%clk 0:02:25]} 23...
Rac8 {[%clk 0:01:53.4]} 24. Qb6 {[%clk 0:02:19.9]} 24... Ng4 {[%clk 0:01:37.6]}
25. h3 {[%clk 0:02:15.9]} 25... Ne5 {[%clk 0:01:35.8]} 26. Red1 {[%clk
0:02:13.2]} 26... Qg5 {[%clk 0:01:33.4]} 27. Kh2 {[%clk 0:02:08.4]} 27... Bd3
{[%clk 0:00:51.3]} 28. Qd4 {[%clk 0:01:42.4]} 28... Rfe8 {[%clk 0:00:50.8]} 29.
h4 {[%clk 0:01:42.7]} 29... Qd8 {[%clk 0:00:13.7]} 30. Nd5 {[%clk 0:01:39.4]}
30... Rxc1 {[%clk 0:00:13]} 31. Rxc1 {[%clk 0:01:39.7]} 31... Be2 {[%clk
0:00:13.4]} 32. Re1 {[%clk 0:01:23.6]} 32... Bf3 {[%clk 0:00:13]} 33. f6 {[%clk
0:01:22.7]} 33... Bxg2 {[%clk 0:00:12.7]} 34. Kxg2 {[%clk 0:01:23.3]} 34... gxf6
{[%clk 0:00:10.5]} 35. Rf1 {[%clk 0:01:23.9]} 35... Ng4 {[%clk 0:00:10.2]} 36.
Kh3 {[%clk 0:01:14.4]} 36... h5 {[%clk 0:00:10.1]} 37. Rf5 {[%clk 0:01:15.1]}
37... Qd7 {[%clk 0:00:09.3]} 38. Kg2 {[%clk 0:01:00.7]} 38... Qe6 {[%clk
0:00:09.1]} 39. Rxh5 {[%clk 0:00:40.4]} 39... Qxe4+ {[%clk 0:00:07]} 40. Qxe4
{[%clk 0:00:41.1]} 40... Rxe4 {[%clk 0:00:07.6]} 41. Kf3 {[%clk 0:00:32.5]}
41... Ra4 {[%clk 0:00:06.8]} 42. Rf5 {[%clk 0:00:32.4]} 42... Kg7 {[%clk
0:00:06.4]} 43. Rf4 {[%clk 0:00:27.8]} 43... Ne5+ {[%clk 0:00:06.9]} 44. Ke3
{[%clk 0:00:28.2]} 44... Ra3+ {[%clk 0:00:06.8]} 45. Ke4 {[%clk 0:00:24.1]}
45... Ra4+ {[%clk 0:00:04.3]} 46. Kf5 {[%clk 0:00:23.9]} 1-0

[Event "*** Titled Tuesday Blitz"]
[Site "Chess.com"]
[Date "2020.05.05"]
[Round "10"]
[White "ManuDavid2910"]
[Black "Vesper2018"]
[Result "1-0"]
[WhiteElo "2650"]
[BlackElo "2205"]
[TimeControl "180+1"]
[EndTime "11:59:38 PDT"]
[Termination "ManuDavid2910 won by resignation"]

1. e4 {[%clk 0:03:00.9]} 1... c5 {[%clk 0:03:00]} 2. Nf3 {[%clk 0:03:01.1]} 2...
d6 {[%clk 0:03:00.4]} 3. c3 {[%clk 0:03:01]} 3... Nf6 {[%clk 0:03:00.2]} 4. Bc4
{[%clk 0:03:00.9]} 4... g6 {[%clk 0:02:52.2]} 5. O-O {[%clk 0:03:00.5]} 5... Bg7
{[%clk 0:02:52.2]} 6. Re1 {[%clk 0:03:01.1]} 6... O-O {[%clk 0:02:52.3]} 7. d4
{[%clk 0:03:01.6]} 7... Bg4 {[%clk 0:02:45.8]} 8. h3 {[%clk 0:02:40.6]} 8...
Bxf3 {[%clk 0:02:45.8]} 9. Qxf3 {[%clk 0:02:41.5]} 9... cxd4 {[%clk 0:02:44]}
10. cxd4 {[%clk 0:02:41.1]} 10... Nc6 {[%clk 0:02:44.3]} 11. Be3 {[%clk
0:02:40.6]} 11... Nd7 {[%clk 0:02:38.5]} 12. Rd1 {[%clk 0:02:39.3]} 12... Rc8
{[%clk 0:02:26.9]} 13. Bf1 {[%clk 0:02:34]} 13... e5 {[%clk 0:02:20.5]} 14. dxe5
{[%clk 0:02:33.8]} 14... Ndxe5 {[%clk 0:02:18.9]} 15. Qg3 {[%clk 0:02:33.8]}
15... Nb4 {[%clk 0:02:10.7]} 16. Na3 {[%clk 0:02:31.1]} 16... Nc2 {[%clk
0:01:51.8]} 17. Nxc2 {[%clk 0:02:27]} 17... Rxc2 {[%clk 0:01:51.9]} 18. Bd4
{[%clk 0:02:27]} 18... Qc7 {[%clk 0:01:36.4]} 19. a4 {[%clk 0:02:16.2]} 19...
Rc8 {[%clk 0:01:22.5]} 20. a5 {[%clk 0:02:01.9]} 20... Qc6 {[%clk 0:01:21.3]}
21. Kh1 {[%clk 0:01:33.3]} 21... Nc4 {[%clk 0:00:26.3]} 22. b3 {[%clk 0:01:18]}
22... Ne5 {[%clk 0:00:21]} 23. f4 {[%clk 0:00:54]} 23... Nd7 {[%clk 0:00:20.6]}
24. Bxg7 {[%clk 0:00:52.6]} 24... Kxg7 {[%clk 0:00:21]} 25. Rd4 {[%clk 0:00:44]}
25... Nf6 {[%clk 0:00:19.6]} 26. e5 {[%clk 0:00:34.7]} 26... Ne4 {[%clk
0:00:17.1]} 27. Qe3 {[%clk 0:00:32.5]} 27... Nf2+ {[%clk 0:00:16.2]} 28. Kg1
{[%clk 0:00:27.4]} 28... dxe5 {[%clk 0:00:16.2]} 29. Qxe5+ {[%clk 0:00:27]}
29... f6 {[%clk 0:00:16.1]} 30. Qe7+ {[%clk 0:00:26.5]} 30... Kh6 {[%clk
0:00:15.9]} 31. Rd7 {[%clk 0:00:24.2]} 31... Nxh3+ {[%clk 0:00:08.5]} 32. gxh3
{[%clk 0:00:22.1]} 32... Qc5+ {[%clk 0:00:05.8]} 33. Qxc5 {[%clk 0:00:21.6]}
33... R8xc5 {[%clk 0:00:06.3]} 34. Rxb7 {[%clk 0:00:19.3]} 34... Rb2 {[%clk
0:00:06]} 35. a6 {[%clk 0:00:17.2]} 35... Rc3 {[%clk 0:00:05]} 36. b4 {[%clk
0:00:16.3]} 36... Rg3+ {[%clk 0:00:04.8]} 37. Kh1 {[%clk 0:00:16.7]} 37... Rf3
{[%clk 0:00:05.3]} 38. Bg2 {[%clk 0:00:14.4]} 38... Rff2 {[%clk 0:00:05]} 39.
Rg1 {[%clk 0:00:14.8]} 39... Rxf4 {[%clk 0:00:05]} 40. b5 {[%clk 0:00:13.6]}
40... Rfb4 {[%clk 0:00:04.5]} 41. Rxa7 {[%clk 0:00:13.2]} 41... Rxb5 {[%clk
0:00:04.9]} 42. Rf7 {[%clk 0:00:12]} 42... Ra5 {[%clk 0:00:05.1]} 43. a7 {[%clk
0:00:12.2]} 43... Rba2 {[%clk 0:00:05.1]} 44. a8=Q {[%clk 0:00:11.6]} 44... Rxa8
{[%clk 0:00:05.3]} 45. Bxa8 {[%clk 0:00:12.5]} 45... Rxa8 {[%clk 0:00:05]} 46.
Rxf6 {[%clk 0:00:13.1]} 1-0

[Event "*** Titled Tuesday Blitz"]
[Site "Chess.com"]
[Date "2020.05.05"]
[Round "10"]
[White "kungmongmanh"]
[Black "SiddharthGMJagadeesh"]
[Result "0-1"]
[WhiteElo "2540"]
[BlackElo "2427"]
[TimeControl "180+1"]
[EndTime "11:59:39 PDT"]
[Termination "SiddharthGMJagadeesh won by resignation"]

1. d4 {[%clk 0:02:57.8]} 1... d5 {[%clk 0:02:59.7]} 2. c4 {[%clk 0:02:57.6]}
2... e6 {[%clk 0:02:59.8]} 3. Nc3 {[%clk 0:02:56.7]} 3... Nf6 {[%clk 0:03:00]}
4. cxd5 {[%clk 0:02:56.9]} 4... exd5 {[%clk 0:03:00.9]} 5. Bg5 {[%clk
0:02:56.4]} 5... c6 {[%clk 0:03:01.4]} 6. e3 {[%clk 0:02:49.4]} 6... Bd6 {[%clk
0:03:01.3]} 7. Bd3 {[%clk 0:02:48.6]} 7... O-O {[%clk 0:03:00.9]} 8. Qc2 {[%clk
0:02:47]} 8... h6 {[%clk 0:03:00.7]} 9. Bh4 {[%clk 0:02:46.6]} 9... Re8 {[%clk
0:03:01]} 10. Nf3 {[%clk 0:02:46.1]} 10... Be6 {[%clk 0:03:00.4]} 11. O-O {[%clk
0:02:45.3]} 11... Nbd7 {[%clk 0:03:00.6]} 12. Rab1 {[%clk 0:02:44.9]} 12... a5
{[%clk 0:03:00.4]} 13. a3 {[%clk 0:02:44.9]} 13... Qb8 {[%clk 0:02:51.9]} 14.
Bg3 {[%clk 0:02:43.5]} 14... Bxg3 {[%clk 0:02:51.6]} 15. hxg3 {[%clk 0:02:44.4]}
15... Qd6 {[%clk 0:02:52.1]} 16. b4 {[%clk 0:02:44.2]} 16... axb4 {[%clk
0:02:52.1]} 17. axb4 {[%clk 0:02:45.1]} 17... b5 {[%clk 0:02:52.6]} 18. e4
{[%clk 0:02:39.7]} 18... dxe4 {[%clk 0:02:52.2]} 19. Nxe4 {[%clk 0:02:40.6]}
19... Nxe4 {[%clk 0:02:51.3]} 20. Bxe4 {[%clk 0:02:41.5]} 20... Bc4 {[%clk
0:02:45.1]} 21. Rfe1 {[%clk 0:02:37.3]} 21... Nf6 {[%clk 0:02:23.1]} 22. Bf5
{[%clk 0:02:16]} 22... Rxe1+ {[%clk 0:02:15.3]} 23. Rxe1 {[%clk 0:02:15.1]}
23... Qxb4 {[%clk 0:02:13.5]} 24. Qc1 {[%clk 0:02:06.9]} 24... Bd5 {[%clk
0:02:07.9]} 25. Ne5 {[%clk 0:01:58.9]} 25... Ra2 {[%clk 0:01:43.5]} 26. Qe3
{[%clk 0:01:48.5]} 26... Ra3 {[%clk 0:01:34.3]} 27. Nd3 {[%clk 0:01:41.5]} 27...
Qf8 {[%clk 0:01:25.9]} 28. Qc1 {[%clk 0:01:27]} 28... b4 {[%clk 0:01:12.1]} 29.
Nc5 {[%clk 0:01:19.3]} 29... g6 {[%clk 0:00:52.6]} 30. Bb1 {[%clk 0:01:14]}
30... Kg7 {[%clk 0:00:36.5]} 31. Qf4 {[%clk 0:01:04.8]} 31... b3 {[%clk
0:00:21.5]} 32. Qc7 {[%clk 0:00:46]} 32... Ra1 {[%clk 0:00:17.2]} 33. Qe5 {[%clk
0:00:37.7]} 33... Qd8 {[%clk 0:00:14.7]} 34. Nb7 {[%clk 0:00:29.6]} 34... Qb6
{[%clk 0:00:12]} 35. Nd6 {[%clk 0:00:29.5]} 35... Ra8 {[%clk 0:00:04.7]} 36. Qf4
{[%clk 0:00:17.4]} 36... b2 {[%clk 0:00:03.9]} 37. Re7 {[%clk 0:00:14.8]} 37...
Qd8 {[%clk 0:00:03.7]} 38. Re1 {[%clk 0:00:12.9]} 38... Ra1 {[%clk 0:00:03.9]}
39. Nb7 {[%clk 0:00:09.4]} 39... Qb6 {[%clk 0:00:03.2]} 40. Nc5 {[%clk
0:00:09.5]} 40... Qb4 {[%clk 0:00:03.3]} 41. Qe5 {[%clk 0:00:09.3]} 41... Kh7
{[%clk 0:00:02.7]} 42. Kh2 {[%clk 0:00:07.5]} 42... Ng4+ {[%clk 0:00:03]} 43.
Kh3 {[%clk 0:00:07]} 43... Nxe5 {[%clk 0:00:03.9]} 44. Rxe5 {[%clk 0:00:07.3]}
44... Rxb1 {[%clk 0:00:04.2]} 0-1

[Event "*** Titled Tuesday Blitz"]
[Site "Chess.com"]
[Date "2020.05.05"]
[Round "10"]
[White "ThePatrick27"]
[Black "praveenb2002"]
[Result "0-1"]
[WhiteElo "2547"]
[BlackElo "2735"]
[TimeControl "180+1"]
[EndTime "11:59:41 PDT"]
[Termination "praveenb2002 won by resignation"]

1. d4 {[%clk 0:03:00.9]} 1... d5 {[%clk 0:02:58.5]} 2. c4 {[%clk 0:03:00.7]}
2... c6 {[%clk 0:02:59.1]} 3. Nc3 {[%clk 0:03:00.5]} 3... Nf6 {[%clk 0:02:59.1]}
4. Nf3 {[%clk 0:03:00.7]} 4... dxc4 {[%clk 0:02:58.4]} 5. a4 {[%clk 0:02:59.4]}
5... Bf5 {[%clk 0:02:56.1]} 6. e3 {[%clk 0:02:59.3]} 6... e6 {[%clk 0:02:45.8]}
7. Bxc4 {[%clk 0:02:59.1]} 7... Bb4 {[%clk 0:02:45.9]} 8. O-O {[%clk 0:02:59]}
8... O-O {[%clk 0:02:45]} 9. Qe2 {[%clk 0:02:59.2]} 9... Nbd7 {[%clk 0:02:41.2]}
10. e4 {[%clk 0:02:57.9]} 10... Bg6 {[%clk 0:02:41.6]} 11. Bd3 {[%clk
0:02:58.1]} 11... Bh5 {[%clk 0:02:40.9]} 12. e5 {[%clk 0:02:57.9]} 12... Nd5
{[%clk 0:02:38.5]} 13. Nxd5 {[%clk 0:02:57.9]} 13... cxd5 {[%clk 0:02:38.7]} 14.
Qe3 {[%clk 0:02:57.6]} 14... Be7 {[%clk 0:02:37.6]} 15. Bd2 {[%clk 0:02:53.3]}
15... Nb8 {[%clk 0:02:37.7]} 16. b4 {[%clk 0:02:47.6]} 16... Nc6 {[%clk
0:02:30.6]} 17. b5 {[%clk 0:02:45.8]} 17... Nb4 {[%clk 0:02:28.7]} 18. Bxb4
{[%clk 0:02:32.9]} 18... Bxb4 {[%clk 0:02:28.2]} 19. Rfc1 {[%clk 0:02:21.5]}
19... Rc8 {[%clk 0:02:24]} 20. Ng5 {[%clk 0:02:17.2]} 20... h6 {[%clk
0:01:55.8]} 21. Nh3 {[%clk 0:02:16.7]} 21... Be7 {[%clk 0:01:30.8]} 22. Nf4
{[%clk 0:02:04.1]} 22... Bg5 {[%clk 0:01:30.4]} 23. h4 {[%clk 0:02:03.8]} 23...
Bxf4 {[%clk 0:01:30]} 24. Qxf4 {[%clk 0:02:04.7]} 24... Qe7 {[%clk 0:01:26.5]}
25. g3 {[%clk 0:01:26.7]} 25... Rfd8 {[%clk 0:01:07.3]} 26. Qd2 {[%clk
0:01:20.5]} 26... Bg4 {[%clk 0:01:00.5]} 27. Rc3 {[%clk 0:00:58.6]} 27... Rc7
{[%clk 0:00:33.7]} 28. Rac1 {[%clk 0:00:57.9]} 28... Rdc8 {[%clk 0:00:33.1]} 29.
Bb1 {[%clk 0:00:58]} 29... Qd7 {[%clk 0:00:26.8]} 30. Rc5 {[%clk 0:00:41.2]}
30... b6 {[%clk 0:00:20]} 31. R5c3 {[%clk 0:00:36.1]} 31... Rc4 {[%clk
0:00:19.7]} 32. Rxc4 {[%clk 0:00:35.4]} 32... Rxc4 {[%clk 0:00:19.6]} 33. Rxc4
{[%clk 0:00:30.6]} 33... dxc4 {[%clk 0:00:19.8]} 34. Be4 {[%clk 0:00:31.3]}
34... Qc7 {[%clk 0:00:16.8]} 35. Qc3 {[%clk 0:00:27.8]} 35... Be2 {[%clk
0:00:16.9]} 36. f3 {[%clk 0:00:27.6]} 36... Bd1 {[%clk 0:00:16.1]} 37. Kf2
{[%clk 0:00:27.5]} 37... Bxa4 {[%clk 0:00:16.1]} 38. Qb4 {[%clk 0:00:25.6]}
38... Bb3 {[%clk 0:00:16.1]} 39. Ke2 {[%clk 0:00:25.1]} 39... Qd7 {[%clk
0:00:15.8]} 40. Ke3 {[%clk 0:00:24.5]} 40... f5 {[%clk 0:00:15.3]} 41. exf6
{[%clk 0:00:24.4]} 41... gxf6 {[%clk 0:00:16.2]} 42. f4 {[%clk 0:00:24.6]} 42...
Qg7 {[%clk 0:00:15.3]} 43. Kf2 {[%clk 0:00:24.1]} 43... f5 {[%clk 0:00:15.6]}
44. Bf3 {[%clk 0:00:22.6]} 44... Qxd4+ {[%clk 0:00:15.8]} 45. Kg2 {[%clk
0:00:23]} 45... Qd7 {[%clk 0:00:14.7]} 46. Qc3 {[%clk 0:00:20.3]} 46... Qg7
{[%clk 0:00:13.1]} 47. Qd2 {[%clk 0:00:20]} 47... Kh7 {[%clk 0:00:12.4]} 48. h5
{[%clk 0:00:18.7]} 48... c3 {[%clk 0:00:12.6]} 49. Qc1 {[%clk 0:00:17.5]} 49...
c2 {[%clk 0:00:12.8]} 50. Bc6 {[%clk 0:00:15.4]} 50... Qd4 {[%clk 0:00:11.7]}
51. Kh2 {[%clk 0:00:15]} 51... Qd1 {[%clk 0:00:11.6]} 52. Qe3 {[%clk 0:00:13.6]}
52... c1=Q {[%clk 0:00:11.2]} 53. Qf2 {[%clk 0:00:11.1]} 53... Qcd2 {[%clk
0:00:11.4]} 0-1